bitfinex/quotes_BTCUSD_20250615
["timestamp","ask_amount","ask_price","bid_price","bid_amount"]
[1749964526137,1.37476352,105720.0,105710.0,0.56601436]
[1749964526821,1.38364266,105720.0,105710.0,0.56601436]
[1749964527320,1.37476352,105720.0,105710.0,0.56601436]
[1749964527519,1.38364266,105720.0,105710.0,0.56601436]
[1749964527986,1.37476352,105720.0,105710.0,0.56601436]
[1749964528232,1.38364266,105720.0,105710.0,0.56601436]
[1749964528860,1.37476352,105720.0,105710.0,0.56601436]
[1749964529072,1.38364266,105720.0,105710.0,0.56601436]
[1749964529482,1.37476352,105720.0,105710.0,0.56601436]
[1749964529751,1.38364266,105720.0,105710.0,0.56601436]
[1749964531181,1.38364264,105720.0,105710.0,0.56601436]
[1749964531323,1.37476352,105720.0,105710.0,0.56601436]
[1749964531527,1.38364264,105720.0,105710.0,0.56601436]
[1749964533884,1.37476352,105720.0,105710.0,0.56601436]
[1749964534282,1.38364264,105720.0,105710.0,0.56601436]
[1749964534493,1.38364265,105720.0,105710.0,0.56601436]
[1749964534708,1.37476352,105720.0,105710.0,0.56601436]
[1749964535039,1.38364265,105720.0,105710.0,0.56601436]
[1749964535395,1.37476352,105720.0,105710.0,0.56601436]
[1749964535571,1.42767035,105720.0,105710.0,0.56601436]
[1749964535811,1.38364265,105720.0,105710.0,0.56601436]
[1749964536216,1.38364264,105720.0,105710.0,0.56601436]
[1749964537478,1.37476352,105720.0,105710.0,0.56601436]
[1749964537687,1.38364264,105720.0,105710.0,0.56601436]
[1749964538022,1.37476352,105720.0,105710.0,0.56601436]
[1749964538277,1.37418379,105720.0,105710.0,0.56601436]
[1749964538481,1.36530467,105720.0,105710.0,0.56601436]
[1749964538684,1.37418379,105720.0,105710.0,0.56601436]
[1749964539978,1.38364203,105720.0,105710.0,0.56601436]
[1749964540220,1.38364199,105720.0,105710.0,0.56601436]
[1749964540458,1.37476291,105720.0,105710.0,0.56601436]
[1749964540720,1.38364199,105720.0,105710.0,0.56601436]
[1749964541190,1.37476291,105720.0,105710.0,0.56601436]
[1749964541409,1.38364203,105720.0,105710.0,0.56601436]
[1749964541602,1.38422105,105720.0,105710.0,0.56601436]
[1749964541857,1.39310017,105720.0,105710.0,0.56601436]
[1749964544026,1.38422105,105720.0,105710.0,0.56601436]
[1749964544450,1.39310017,105720.0,105710.0,0.56601436]
[1749964545455,1.39310018,105720.0,105710.0,0.56601436]
[1749964545626,1.38422105,105720.0,105710.0,0.56601436]
[1749964545872,1.39310018,105720.0,105710.0,0.56601436]
[1749964546574,1.38422105,105720.0,105710.0,0.56601436]
[1749964546804,1.39310018,105720.0,105710.0,0.56601436]
[1749964547042,1.38422105,105720.0,105710.0,0.56601436]
[1749964547489,1.39310018,105720.0,105710.0,0.56601436]
[1749964547957,1.38422105,105720.0,105710.0,0.56601436]
[1749964548185,1.39310018,105720.0,105710.0,0.56601436]
[1749964548412,0.94952484,105720.0,105710.0,0.56601436]
[1749964548641,1.39310018,105720.0,105710.0,0.56601436]
[1749964549098,1.3931002,105720.0,105710.0,0.56601436]
[1749964549339,1.38422105,105720.0,105710.0,0.56601436]
[1749964549581,1.3931002,105720.0,105710.0,0.56601436]
[1749964549816,1.38422105,105720.0,105710.0,0.56601436]
[1749964550046,1.3931002,105720.0,105710.0,0.56601436]
[1749964551357,1.38422105,105720.0,105710.0,0.56601436]
[1749964551591,1.3931002,105720.0,105710.0,0.56601436]
[1749964551818,1.38422105,105720.0,105710.0,0.56601436]
[1749964552049,1.3931002,105720.0,105710.0,0.56601436]
[1749964553907,1.38422105,105720.0,105710.0,0.56601436]
[1749964554117,1.3931002,105720.0,105710.0,0.56601436]
[1749964554328,1.38422105,105720.0,105710.0,0.56601436]
[1749964554541,1.3931002,105720.0,105710.0,0.56601436]
[1749964557015,1.3931002,105720.0,105710.0,0.55051436]
[1749964557466,1.40255905,105720.0,105710.0,0.55051436]
[1749964557697,1.3936799,105720.0,105710.0,0.55051436]
[1749964558179,1.40255905,105720.0,105710.0,0.55051436]
[1749964559448,1.40255903,105720.0,105710.0,0.55051436]
[1749964561011,1.3936807,105720.0,105710.0,0.54105515]
[1749964561197,1.40255982,105720.0,105710.0,0.54105515]
[1749964561822,1.40255982,105720.0,105710.0,0.54097515]
[1749964562027,1.13870505,105720.0,105710.0,0.54097515]
[1749964562259,1.58228039,105720.0,105710.0,0.54097515]
[1749964562619,1.57340125,105720.0,105710.0,0.54097515]
[1749964562855,1.58228039,105720.0,105710.0,0.54097515]
[1749964563303,1.58228039,105720.0,105710.0,0.53151585]
[1749964563576,1.56394275,105720.0,105710.0,0.53151585]
[1749964563786,1.57282189,105720.0,105710.0,0.53151585]
[1749964564232,1.56394275,105720.0,105710.0,0.53151585]
[1749964564560,1.57282189,105720.0,105710.0,0.53151585]
[1749964565226,1.56394275,105720.0,105710.0,0.53151585]
[1749964565432,1.57282189,105720.0,105710.0,0.53151585]
[1749964565908,1.56336313,105720.0,105710.0,0.52205646]
[1749964566160,1.56336326,105720.0,105710.0,0.53151603]
[1749964566353,1.55448399,105720.0,105710.0,0.53151603]
[1749964566870,1.56336327,105720.0,105710.0,0.53151603]
[1749964567286,1.55448399,105720.0,105710.0,0.53151603]
[1749964567512,1.56336327,105720.0,105710.0,0.53151603]
[1749964568315,1.56336327,105720.0,105710.0,0.54097551]
[1749964568479,1.56336327,105720.0,105710.0,0.51257732]
[1749964569493,1.55448399,105720.0,105710.0,0.51257732]
[1749964571455,1.55448399,105720.0,105710.0,0.52203671]
[1749964572965,1.56336329,105720.0,105710.0,0.52203671]
[1749964573431,1.55448399,105720.0,105710.0,0.52203671]
[1749964573665,1.56336329,105720.0,105710.0,0.52203671]
[1749964573860,1.55448399,105720.0,105710.0,0.52203671]
[1749964574296,1.56336329,105720.0,105710.0,0.52203671]
[1749964574746,1.55448399,105720.0,105710.0,0.52203671]
[1749964574961,1.56336329,105720.0,105710.0,0.52203671]
[1749964576028,1.55448399,105720.0,105710.0,0.52203671]
[1749964576522,0.92114979,105720.0,105710.0,0.53149592]
[1749964576750,0.94006686,105720.0,105710.0,0.57619311]
[1749964576964,0.94006682,105720.0,105710.0,0.57619311]
[1749964577190,0.94006681,105720.0,105710.0,0.57619311]
[1749964577446,0.94952574,105720.0,105710.0,0.57619127]
[1749964577667,1.3931011,105720.0,105710.0,0.57619127]
[1749964578103,1.38422194,105720.0,105710.0,0.57619127]
[1749964578515,1.3931011,105720.0,105710.0,0.57619127]
[1749964579161,1.38422194,105720.0,105710.0,0.57619127]
[1749964579365,1.3931011,105720.0,105710.0,0.57619127]
[1749964579541,1.39310082,105720.0,105710.0,0.57619127]
[1749964579750,1.38364188,105720.0,105710.0,0.57619082]
[1749964580935,1.374763,105720.0,105710.0,0.57619082]
[1749964581317,1.38364188,105720.0,105710.0,0.57619082]
[1749964583412,1.374763,105720.0,105710.0,0.57619082]
[1749964584121,1.38364188,105720.0,105710.0,0.57619082]
[1749964584329,1.374763,105720.0,105710.0,0.57619082]
[1749964584537,1.38364188,105720.0,105710.0,0.57619082]
[1749964584981,1.374763,105720.0,105710.0,0.57619082]
[1749964585194,1.38364188,105720.0,105710.0,0.57619082]
[1749964585408,1.374763,105720.0,105710.0,0.57619082]
[1749964585616,1.38364188,105720.0,105710.0,0.57619082]
[1749964586241,1.38364188,105720.0,105710.0,0.57619071]
[1749964587042,1.374763,105720.0,105710.0,0.57619071]
[1749964587281,1.38364176,105720.0,105710.0,0.57619071]
[1749964587850,1.38364173,105720.0,105710.0,0.57619071]
[1749964588074,1.38364103,105720.0,105710.0,0.57619071]
[1749964589001,1.39309997,105720.0,105710.0,0.57619071]
[1749964589817,1.39309963,105720.0,105710.0,0.57619071]
[1749964590033,1.38422194,105720.0,105710.0,0.57619071]
[1749964590277,1.58227858,105720.0,105710.0,0.5667315]
[1749964590489,1.5734009,105720.0,105710.0,0.5667315]
[1749964590709,1.58227859,105720.0,105710.0,0.5504315]
[1749964590930,1.5734009,105720.0,105710.0,0.5504315]
[1749964591830,1.58227859,105720.0,105710.0,0.5504315]
[1749964593216,1.5734009,105720.0,105710.0,0.5504315]
[1749964593420,1.58227859,105720.0,105710.0,0.5504315]
[1749964594796,1.5734009,105720.0,105710.0,0.5504315]
[1749964595006,1.58227859,105720.0,105710.0,0.5504315]
[1749964595754,1.5734009,105720.0,105710.0,0.5504315]
[1749964595957,1.58227874,105720.0,105710.0,0.3576715]
[1749964596192,1.5734009,105720.0,105710.0,0.5503515]
[1749964596399,1.58227874,105720.0,105710.0,0.5503515]
[1749964596603,1.39309978,105720.0,105710.0,0.5503515]
[1749964597233,1.38422194,105720.0,105710.0,0.5503515]
[1749964597446,1.39309978,105720.0,105710.0,0.5503515]
[1749964598699,1.39309989,105720.0,105710.0,0.52195635]
[1749964598915,1.39309993,105720.0,105710.0,0.52195635]
[1749964599556,1.38422194,105720.0,105710.0,0.52195635]
[1749964599769,1.39309993,105720.0,105710.0,0.52195635]
[1749964600600,1.38422194,105720.0,105710.0,0.52195635]
[1749964600810,1.39309873,105720.0,105710.0,0.52195635]
[1749964601238,1.38422194,105720.0,105710.0,0.52195635]
[1749964601485,1.39309873,105720.0,105710.0,0.52195635]
[1749964601893,1.38422194,105720.0,105710.0,0.52195635]
[1749964602112,1.39309873,105720.0,105710.0,0.52195635]
[1749964602322,1.5734009,105720.0,105710.0,0.52195635]
[1749964602553,1.58227769,105720.0,105710.0,0.52195635]
[1749964602815,1.5734009,105720.0,105710.0,0.52195635]
[1749964603084,1.58227769,105720.0,105710.0,0.52195635]
[1749964603366,1.5734009,105720.0,105710.0,0.52195635]
[1749964603527,1.58227769,105720.0,105710.0,0.52195635]
[1749964604311,1.5734009,105720.0,105710.0,0.52195635]
[1749964604914,1.58227769,105720.0,105710.0,0.52195635]
[1749964605627,1.5734009,105720.0,105710.0,0.52195635]
[1749964605832,1.58227769,105720.0,105710.0,0.52195635]
[1749964606012,1.5734009,105720.0,105710.0,0.52195635]
[1749964606309,1.58227769,105720.0,105710.0,0.52195635]
[1749964606958,1.5734009,105720.0,105710.0,0.52195635]
[1749964607158,1.58227769,105720.0,105710.0,0.52195635]
[1749964607596,1.5734009,105720.0,105710.0,0.52195635]
[1749964607797,1.58227769,105720.0,105710.0,0.52195635]
[1749964608252,1.5734009,105720.0,105710.0,0.52195635]
[1749964608533,1.39309873,105720.0,105710.0,0.50303802]
[1749964608775,1.38422194,105720.0,105710.0,0.52195671]
[1749964609019,1.39309873,105720.0,105710.0,0.52195671]
[1749964609476,1.38422194,105720.0,105710.0,0.52195671]
[1749964609680,1.39309772,105720.0,105710.0,0.52195671]
[1749964610037,1.38422194,105720.0,105710.0,0.52195671]
[1749964610410,1.39309772,105720.0,105710.0,0.52195671]
[1749964610689,1.38422194,105720.0,105710.0,0.52195671]
[1749964610869,1.39309772,105720.0,105710.0,0.52195671]
[1749964611829,1.38422194,105720.0,105710.0,0.52195671]
[1749964612035,1.39309837,105720.0,105710.0,0.52195671]
[1749964613036,1.38422194,105720.0,105710.0,0.52195671]
[1749964613347,1.39309837,105720.0,105710.0,0.52195671]
[1749964613854,1.38422194,105720.0,105710.0,0.52195671]
[1749964614210,1.39309837,105720.0,105710.0,0.52195671]
[1749964614846,1.38422194,105720.0,105710.0,0.52195671]
[1749964615053,1.58227733,105720.0,105710.0,0.52195689]
[1749964615686,1.5734009,105720.0,105710.0,0.52195689]
[1749964616339,1.58227732,105720.0,105710.0,0.52195689]
[1749964617182,1.5734009,105720.0,105710.0,0.52195689]
[1749964617294,1.58227732,105720.0,105710.0,0.52195689]
[1749964617758,1.5734009,105720.0,105710.0,0.52195689]
[1749964618083,1.12982556,105720.0,105710.0,0.52195689]
[1749964618294,1.5734009,105720.0,105710.0,0.52195689]
[1749964618467,1.58228021,105720.0,105710.0,0.52195689]
[1749964618849,1.5734009,105720.0,105710.0,0.52195689]
[1749964619053,1.58228021,105720.0,105710.0,0.52195689]
[1749964619414,1.5734009,105720.0,105710.0,0.52195689]
[1749964619614,1.58228021,105720.0,105710.0,0.52195689]
[1749964620021,1.13870487,105720.0,105710.0,0.52195689]
[1749964620222,1.57282189,105720.0,105710.0,0.5124975]
[1749964620348,1.55448399,105720.0,105710.0,0.5124975]
[1749964620553,1.5633633,105720.0,105710.0,0.5124175]
[1749964620755,1.55448399,105720.0,105710.0,0.5124175]
[1749964620956,1.56336331,105720.0,105710.0,0.5124175]
[1749964621362,1.55448399,105720.0,105710.0,0.5124175]
[1749964621560,1.56336331,105720.0,105710.0,0.5124175]
[1749964621970,1.55448399,105720.0,105710.0,0.5124175]
[1749964622171,1.56336331,105720.0,105710.0,0.5124175]
[1749964623233,1.55448399,105720.0,105710.0,0.5124175]
[1749964623412,1.56336331,105720.0,105710.0,0.5124175]
[1749964624124,1.56336323,105720.0,105710.0,0.5124175]
[1749964624721,1.55448399,105720.0,105710.0,0.5124175]
[1749964624954,1.56336323,105720.0,105710.0,0.5124175]
[1749964625284,1.55448399,105720.0,105710.0,0.5124175]
[1749964625485,1.55390439,105720.0,105710.0,0.50295802]
[1749964626876,1.54502514,105720.0,105710.0,0.50295802]
[1749964627479,1.55390438,105720.0,105710.0,0.50295802]
[1749964628133,1.54502514,105720.0,105710.0,0.50295802]
[1749964628345,1.55390438,105720.0,105710.0,0.50295802]
[1749964628557,1.55390438,105720.0,105710.0,0.54081265]
[1749964628765,1.55390435,105720.0,105710.0,0.54081265]
[1749964628977,1.54502514,105720.0,105710.0,0.54081265]
[1749964629179,1.55390438,105720.0,105710.0,0.54081265]
[1749964629631,1.55390438,105720.0,105710.0,0.55027204]
[1749964629846,1.54502514,105720.0,105710.0,0.55027204]
[1749964630058,1.55390436,105720.0,105710.0,0.55027967]
[1749964630743,1.11032902,105720.0,105710.0,0.55027967]
[1749964630962,1.55390436,105720.0,105710.0,0.55027967]
[1749964631172,1.54502514,105720.0,105710.0,0.55027967]
[1749964631385,1.55390433,105720.0,105710.0,0.55027967]
[1749964631585,1.54502514,105720.0,105710.0,0.55027967]
[1749964631801,1.55390429,105720.0,105710.0,0.55027967]
[1749964632448,1.55390428,105720.0,105710.0,0.55027967]
[1749964633288,1.55390435,105720.0,105710.0,0.55027967]
[1749964634132,1.54502514,105720.0,105710.0,0.55027967]
[1749964634353,1.55390435,105720.0,105710.0,0.55027967]
[1749964634556,1.54502514,105720.0,105710.0,0.55027967]
[1749964634771,1.55390435,105720.0,105710.0,0.55027967]
[1749964634983,1.59793197,105720.0,105710.0,0.55027967]
[1749964635189,1.54502514,105720.0,105710.0,0.55027967]
[1749964635615,1.55390435,105720.0,105710.0,0.55027967]
[1749964636660,1.55390428,105720.0,105710.0,0.55027967]
[1749964637188,1.55390423,105720.0,105710.0,0.55027967]
[1749964637321,1.55390418,105720.0,105710.0,0.55027967]
[1749964637782,1.55390428,105720.0,105710.0,0.55027967]
[1749964637952,1.54502514,105720.0,105710.0,0.55027967]
[1749964638613,1.55390428,105720.0,105710.0,0.55973897]
[1749964639523,1.54502514,105720.0,105710.0,0.55973897]
[1749964639932,1.55390353,105720.0,105710.0,0.55973897]
[1749964640393,1.54502514,105720.0,105710.0,0.55973897]
[1749964640571,1.55390353,105720.0,105710.0,0.55973897]
[1749964642828,1.54502514,105720.0,105710.0,0.55973897]
[1749964643041,1.5539033,105720.0,105710.0,0.55973897]
[1749964643487,1.54502514,105720.0,105710.0,0.55973897]
[1749964643696,1.5539033,105720.0,105710.0,0.55973897]
[1749964644926,1.54502514,105720.0,105710.0,0.55973897]
[1749964645143,1.5539033,105720.0,105710.0,0.55973897]
[1749964645567,1.54502514,105720.0,105710.0,0.55973897]
[1749964645750,1.5539033,105720.0,105710.0,0.55973897]
[1749964646224,1.54502514,105720.0,105710.0,0.55973897]
[1749964646434,1.5539033,105720.0,105710.0,0.55973897]
[1749964646637,1.54502514,105720.0,105710.0,0.55973897]
[1749964646838,1.5539033,105720.0,105710.0,0.55973897]
[1749964647821,1.11032796,105720.0,105710.0,0.55973897]
[1749964648096,1.5539033,105720.0,105710.0,0.55973897]
[1749964648276,1.54502514,105720.0,105710.0,0.55973897]
[1749964648680,1.5539033,105720.0,105710.0,0.55973897]
[1749964649102,1.54502514,105720.0,105710.0,0.55973897]
[1749964649513,1.5539033,105720.0,105710.0,0.55973897]
[1749964650541,1.54502514,105720.0,105710.0,0.55973897]
[1749964650753,1.55390329,105720.0,105710.0,0.55973897]
[1749964651170,1.5539033,105720.0,105710.0,0.55973897]
[1749964651708,1.60681013,105720.0,105710.0,0.55973897]
[1749964651971,1.54502514,105720.0,105710.0,0.55973897]
[1749964652177,1.5539033,105720.0,105710.0,0.55973897]
[1749964653070,1.54502514,105720.0,105710.0,0.55973897]
[1749964653741,1.5539033,105720.0,105710.0,0.55973897]
[1749964654057,1.55390438,105720.0,105710.0,0.55973897]
[1749964654484,1.54502514,105720.0,105710.0,0.55973897]
[1749964654689,1.55390437,105720.0,105710.0,0.55973897]
[1749964655416,1.54502514,105720.0,105710.0,0.55973897]
[1749964655839,1.56336304,105720.0,105710.0,0.55973897]
[1749964656039,1.55448381,105720.0,105710.0,0.55973897]
[1749964656472,1.56336304,105720.0,105710.0,0.55973897]
[1749964656682,1.55448381,105720.0,105710.0,0.55973897]
[1749964656881,1.56336304,105720.0,105710.0,0.55973897]
[1749964657114,1.56336304,105720.0,105710.0,0.55027967]
[1749964658581,1.55448381,105720.0,105710.0,0.55973897]
[1749964659004,1.56336304,105720.0,105710.0,0.55973897]
[1749964659184,1.56336304,105720.0,105710.0,0.55027967]
[1749964659828,1.55448381,105720.0,105710.0,0.55027967]
[1749964660076,1.56336304,105720.0,105710.0,0.55027967]
[1749964660280,1.56336298,105720.0,105710.0,0.55973897]
[1749964660463,1.55448381,105720.0,105710.0,0.55973897]
[1749964660700,1.56336295,105720.0,105710.0,0.55973897]
[1749964660906,1.55448381,105720.0,105710.0,0.55973897]
[1749964661122,1.56336297,105720.0,105710.0,0.55973897]
[1749964661534,1.55448381,105720.0,105710.0,0.55973897]
[1749964661716,1.56336304,105720.0,105710.0,0.55973897]
[1749964661951,1.55448381,105720.0,105710.0,0.55973897]
[1749964662372,1.56336304,105720.0,105710.0,0.55973897]
[1749964663523,1.55448381,105720.0,105710.0,0.55973897]
[1749964663730,1.56336304,105720.0,105710.0,0.55973897]
[1749964663947,1.55448381,105720.0,105710.0,0.55973897]
[1749964664387,1.56336304,105720.0,105710.0,0.55973897]
[1749964665048,1.55448381,105720.0,105710.0,0.55973897]
[1749964665253,1.56336304,105720.0,105710.0,0.55973897]
[1749964665661,1.55448381,105720.0,105710.0,0.55973897]
[1749964666083,1.56336304,105720.0,105710.0,0.55973897]
[1749964667390,1.55448381,105720.0,105710.0,0.55973897]
[1749964667595,1.56336304,105720.0,105710.0,0.55973897]
[1749964667810,1.55448381,105720.0,105710.0,0.55973897]
[1749964667995,1.56336304,105720.0,105710.0,0.55973897]
[1749964668145,1.55448381,105720.0,105710.0,0.55973897]
[1749964668348,1.56336304,105720.0,105710.0,0.55973897]
[1749964668969,1.56336305,105720.0,105710.0,0.55973897]
[1749964669196,1.55448381,105720.0,105710.0,0.55973897]
[1749964669563,1.56336305,105720.0,105710.0,0.55973897]
[1749964670224,1.55448381,105720.0,105710.0,0.55973897]
[1749964671050,1.56336296,105720.0,105710.0,0.55973897]
[1749964672077,1.55448381,105720.0,105710.0,0.55973897]
[1749964672258,1.56336296,105720.0,105710.0,0.55973897]
[1749964672465,1.55448381,105720.0,105710.0,0.55973897]
[1749964672894,1.56336299,105720.0,105710.0,0.53133619]
[1749964673109,1.55448381,105720.0,105710.0,0.53133619]
[1749964673316,1.56336299,105720.0,105710.0,0.53133619]
[1749964673685,1.56336299,105720.0,105710.0,0.53121619]
[1749964673883,1.37418403,105720.0,105710.0,0.55961834]
[1749964674293,1.37418402,105720.0,105710.0,0.55961834]
[1749964676961,1.37418402,105720.0,105710.0,0.53121556]
[1749964677264,1.37418402,105720.0,105710.0,0.55961834]
[1749964677519,1.36530485,105720.0,105710.0,0.55961834]
[1749964677725,1.37418402,105720.0,105710.0,0.53121556]
[1749964677928,1.36530485,105720.0,105710.0,0.53121556]
[1749964678120,1.37418402,105720.0,105710.0,0.53121556]
[1749964679473,1.36530485,105720.0,105710.0,0.53121556]
[1749964679677,1.37418402,105720.0,105710.0,0.53121556]
[1749964679990,1.56336298,105720.0,105710.0,0.52175635]
[1749964680646,1.56336298,105720.0,105710.0,0.51229705]
[1749964681073,1.55448381,105720.0,105710.0,0.51229705]
[1749964681483,1.56336299,105720.0,105710.0,0.51229705]
[1749964681872,1.55448381,105720.0,105710.0,0.52175635]
[1749964682077,1.56336299,105720.0,105710.0,0.52175635]
[1749964682569,1.5633627,105720.0,105710.0,0.51229705]
[1749964683198,2.02303806,105720.0,105710.0,0.006]
[1749964683412,2.03863859,105720.0,105710.0,0.006]
[1749964683619,2.03863874,105720.0,105710.0,0.15916]
[1749964683839,2.03863878,105720.0,105710.0,0.15916]
[1749964684063,2.02975915,105720.0,105710.0,0.15916]
[1749964684276,2.0386388,105720.0,105710.0,0.15916]
[1749964684691,2.03863877,105720.0,105710.0,0.15916]
[1749964685105,2.03863876,105720.0,105710.0,0.15916]
[1749964685350,2.03863875,105720.0,105710.0,0.15916]
[1749964685539,1.58618381,105720.0,105710.0,0.15916]
[1749964685762,1.59506341,105720.0,105710.0,0.15916]
[1749964686066,1.64797023,105720.0,105710.0,0.15916]
[1749964686376,1.58618381,105720.0,105710.0,0.15916]
[1749964686589,2.03863874,105720.0,105710.0,0.15916]
[1749964686796,2.03862708,105720.0,105710.0,0.15916]
[1749964687588,1.59505174,105720.0,105710.0,0.15916]
[1749964689456,1.59505174,105720.0,105710.0,0.17689118]
[1749964689659,2.02975915,105720.0,105710.0,0.17689118]
[1749964689838,2.03862708,105720.0,105710.0,0.17689118]
[1749964690081,2.03862708,105720.0,105710.0,0.006]
[1749964690289,2.02975915,105720.0,105710.0,0.02373116]
[1749964690489,2.03862708,105720.0,105710.0,0.02373116]
[1749964690692,1.59505174,105720.0,105710.0,0.02373116]
[1749964690873,1.59505174,105720.0,105710.0,0.006]
[1749964691111,1.58618381,105720.0,105710.0,0.02373117]
[1749964691313,1.58618381,105720.0,105710.0,0.006]
[1749964691519,1.59505174,105720.0,105710.0,0.02373117]
[1749964692323,1.59505174,105720.0,105710.0,0.006]
[1749964692577,1.59505174,105720.0,105710.0,0.02373117]
[1749964693014,1.58618381,105720.0,105710.0,0.02373117]
[1749964693222,1.58618381,105720.0,105710.0,0.006]
[1749964693401,1.59505174,105720.0,105710.0,0.02373117]
[1749964694059,1.59505174,105720.0,105710.0,0.006]
[1749964694290,2.37862708,105720.0,105710.0,0.006]
[1749964694510,2.36975915,105720.0,105710.0,0.006]
[1749964694749,2.57862775,105720.0,105710.0,0.006]
[1749964694968,3.49160485,105720.0,105710.0,0.006]
[1749964695185,3.10040971,105720.0,105710.0,0.006]
[1749964695398,3.12885868,105720.0,105710.0,0.006]
[1749964695611,3.12885861,105720.0,105710.0,0.006]
[1749964695816,3.11999032,105720.0,105710.0,0.006]
[1749964696044,3.12885862,105720.0,105710.0,0.006]
[1749964696259,3.12885862,105720.0,105710.0,0.002]
[1749964696467,0.22455529,105690.0,105680.0,0.03924]
[1749964696675,0.66813063,105690.0,105680.0,0.03924]
[1749964696895,0.67699893,105690.0,105680.0,0.03924]
[1749964697127,0.67699881,105690.0,105680.0,0.03924]
[1749964697443,0.66813063,105690.0,105680.0,0.03924]
[1749964697678,0.66813063,105690.0,105670.0,0.3552528]
[1749964697679,0.18925056,105680.0,105670.0,0.3552528]
[1749964697887,0.65174996,105680.0,105670.0,0.47874501]
[1749964698092,0.6706742,105680.0,105670.0,0.44896789]
[1749964698304,0.670675,105680.0,105670.0,0.48820813]
[1749964698494,0.670675,105680.0,105670.0,0.48820812]
[1749964698858,0.670675,105680.0,105670.0,0.49020812]
[1749964699064,0.670675,105680.0,105670.0,0.49014662]
[1749964699291,0.49088687,105680.0,105670.0,0.49960941]
[1749964699497,0.49088687,105680.0,105670.0,0.50360933]
[1749964699704,0.49088687,105680.0,105670.0,0.46436933]
[1749964699911,0.49088687,105680.0,105670.0,0.48593053]
[1749964700118,0.49088687,105680.0,105670.0,0.42799146]
[1749964700319,0.49088687,105680.0,105670.0,0.42799148]
[1749964700521,0.21763714,105680.0,105670.0,0.40906581]
[1749964700731,0.47196192,105680.0,105670.0,0.39138674]
[1749964700936,0.48142435,105680.0,105670.0,0.40905695]
[1749964701397,0.03784901,105680.0,105670.0,0.40905694]
[1749964701618,0.04731153,105680.0,105670.0,0.39138674]
[1749964701843,0.03784901,105680.0,105670.0,0.40905694]
[1749964702548,0.02838658,105680.0,105670.0,0.39138674]
[1749964702771,0.02838658,105680.0,105670.0,0.40905694]
[1749964703444,0.03784901,105680.0,105670.0,0.40905694]
[1749964703657,0.03784901,105680.0,105670.0,0.39138674]
[1749964703986,0.03784901,105680.0,105670.0,0.40905694]
[1749964704203,0.01892424,105680.0,105670.0,0.39138674]
[1749964704412,0.01892424,105680.0,105670.0,0.40905687]
[1749964704639,0.02838588,105680.0,105670.0,0.40905687]
[1749964705290,0.01892371,105680.0,105670.0,0.39138674]
[1749964705497,0.01892371,105680.0,105670.0,0.40905693]
[1749964705718,0.01892371,105680.0,105670.0,0.39138674]
[1749964705923,0.01892371,105680.0,105670.0,0.85263199]
[1749964706128,0.02838561,105680.0,105670.0,0.85263199]
[1749964706331,0.02838561,105680.0,105670.0,0.85263202]
[1749964706535,0.01892353,105680.0,105670.0,0.85263202]
[1749964706742,0.02838552,105680.0,105670.0,0.85263202]
[1749964707378,0.02838552,105680.0,105670.0,0.40905668]
[1749964707578,0.02838552,105680.0,105670.0,0.40905672]
[1749964707807,0.02838552,105680.0,105670.0,0.39138674]
[1749964708235,0.02838552,105680.0,105670.0,0.40905672]
[1749964708444,0.02838552,105680.0,105670.0,0.39138674]
[1749964708653,0.02838552,105680.0,105670.0,0.40905672]
[1749964708862,0.01892353,105680.0,105670.0,0.40905671]
[1749964709074,0.01892353,105680.0,105670.0,0.39138674]
[1749964709283,0.01892353,105680.0,105670.0,0.4090567]
[1749964709518,0.02838543,105680.0,105670.0,0.40905884]
[1749964709732,0.0378476,105680.0,105670.0,0.39138674]
[1749964709943,0.03784751,105680.0,105670.0,0.40905887]
[1749964710358,0.03784751,105680.0,105670.0,0.40905888]
[1749964710566,0.03784751,105680.0,105670.0,0.40905887]
[1749964710767,0.02838543,105680.0,105670.0,0.40905887]
[1749964711176,0.03784751,105680.0,105670.0,0.40905887]
[1749964711806,0.03784751,105680.0,105670.0,0.39138674]
[1749964712020,0.03784751,105680.0,105670.0,0.40905887]
[1749964712203,0.03784751,105680.0,105670.0,0.56225909]
[1749964712430,0.02838543,105680.0,105670.0,0.56225909]
[1749964712649,0.03784751,105680.0,105670.0,0.56225909]
[1749964712855,0.02838543,105680.0,105670.0,0.54458674]
[1749964713098,0.02838543,105680.0,105670.0,0.56227242]
[1749964713505,0.02838543,105680.0,105670.0,0.56227241]
[1749964714164,0.02838543,105680.0,105670.0,0.54458674]
[1749964714612,0.02838543,105680.0,105670.0,0.56227242]
[1749964714992,0.02838543,105680.0,105670.0,0.54458674]
[1749964715155,0.02838543,105680.0,105670.0,0.56227242]
[1749964715581,0.01892353,105680.0,105670.0,0.56227242]
[1749964715754,0.02838543,105680.0,105670.0,0.56227241]
[1749964715957,0.02838543,105680.0,105670.0,0.54458674]
[1749964716405,0.02838543,105680.0,105670.0,0.5622724]
[1749964716861,0.02838543,105680.0,105670.0,0.56234766]
[1749964717505,0.02838543,105680.0,105670.0,0.54458674]
[1749964717713,0.02838543,105680.0,105670.0,0.56234766]
[1749964717962,0.02838543,105680.0,105670.0,0.56234762]
[1749964718123,0.02838543,105680.0,105670.0,0.54458674]
[1749964718476,0.01892353,105680.0,105670.0,0.56234765]
[1749964718657,0.01892353,105680.0,105670.0,0.54458674]
[1749964719145,0.01892353,105680.0,105670.0,0.56234748]
[1749964719336,0.01892353,105680.0,105670.0,0.54458674]
[1749964719467,0.01892353,105680.0,105670.0,0.56234748]
[1749964719670,0.01892353,105680.0,105670.0,0.54458674]
[1749964720267,0.01892353,105680.0,105670.0,0.56234749]
[1749964720775,0.00946172,105680.0,105670.0,0.56234749]
[1749964720968,0.01892362,105680.0,105670.0,0.54458674]
[1749964721164,0.01892362,105680.0,105670.0,0.56234729]
[1749964721370,0.01892362,105680.0,105670.0,0.56234731]
[1749964721673,0.01892362,105680.0,105670.0,0.54458674]
[1749964721856,0.01892362,105680.0,105670.0,0.56234731]
[1749964722064,0.01892362,105680.0,105670.0,0.54614731]
[1749964722264,0.01892362,105680.0,105670.0,0.54614739]
[1749964722691,0.01892362,105680.0,105670.0,0.5461475]
[1749964722896,0.01892362,105680.0,105670.0,0.52838674]
[1749964723345,0.00946172,105680.0,105670.0,0.57452576]
[1749964723551,0.02838552,105680.0,105670.0,0.53528572]
[1749964723968,0.01892362,105680.0,105670.0,0.53528573]
[1749964724176,0.01892362,105680.0,105670.0,0.51752513]
[1749964724379,0.01892362,105680.0,105670.0,0.53528567]
[1749964724606,0.01892362,105680.0,105670.0,0.5352857]
[1749964725011,0.01892362,105680.0,105670.0,0.51752513]
[1749964725213,0.01892362,105680.0,105670.0,0.5352857]
[1749964725420,0.01892362,105680.0,105670.0,0.51752513]
[1749964725623,0.01892362,105680.0,105670.0,0.53528571]
[1749964725825,0.01892362,105680.0,105670.0,0.53528564]
[1749964726034,0.01892362,105680.0,105670.0,0.53528572]
[1749964726244,0.01892362,105680.0,105670.0,0.53528563]
[1749964726420,0.01892362,105680.0,105670.0,0.51752513]
[1749964726623,0.01892362,105680.0,105670.0,0.5553442]